bitfinex/quotes_ETHUSD_20260202
["timestamp","ask_amount","ask_price","bid_price","bid_amount"]
[1770026154115,13.44386301,2297.8,2296.2,0.913]
[1770026155008,0.01191357,2297.8,2296.2,0.913]
[1770026156419,0.01191357,2297.8,2295.5,13.92132147]
[1770026156420,13.44386301,2297.8,2295.5,13.92132147]
[1770026156615,13.44386301,2297.8,2296.0,0.913]
[1770026156823,0.01191357,2297.8,2296.0,14.83432147]
[1770026157006,0.01191357,2297.8,2296.5,13.92132147]
[1770026157717,0.01191357,2297.8,2296.6,14.5]
[1770026158515,0.01191357,2297.8,2296.7,0.913]
[1770026159439,0.01191357,2297.8,2296.8,14.5]
[1770026159609,0.01191357,2297.8,2296.9,1.5413]
[1770026159809,13.43194944,2299.2,2296.9,15.46262147]
[1770026160219,13.43194944,2299.2,2297.0,14.5]
[1770026160427,13.43194944,2299.2,2296.9,1.5413]
[1770026160636,9.61719788,2299.0,2296.4,13.92132147]
[1770026160948,13.43194944,2298.9,2296.6,23.58644963]
[1770026161131,13.43194944,2298.9,2296.7,13.92132147]
[1770026161334,14.34240804,2298.8,2296.7,13.92132147]
[1770026161531,13.43194944,2298.6,2296.8,1.39213215]
[1770026161838,0.9104586,2298.5,2296.5,0.913]
[1770026162244,14.56369281,2297.7,2295.7,13.92132147]
[1770026162456,1.13174337,2297.0,2295.4,2.84213215]
[1770026162615,1.13174337,2296.7,2295.4,0.913]
[1770026162815,0.9104586,2296.6,2295.4,0.913]
[1770026163022,0.9104586,2296.5,2295.8,1.08891798]
[1770026163336,0.92116722,2296.4,2295.4,15.9234504]
[1770026163634,1.13174337,2296.6,2295.5,1.08906382]
[1770026163836,1.13174337,2296.6,2295.6,2.68135142]
[1770026164049,1.53544503,2296.8,2295.6,2.68135142]
[1770026164050,1.13174337,2296.7,2295.6,2.6813567]
[1770026164220,1.13174337,2296.5,2295.6,1.59233853]
[1770026164917,1.13174337,2296.5,2295.6,16.60267439]
[1770026165148,1.13174337,2296.9,2295.7,13.92132147]
[1770026165446,1.13174337,2296.9,2295.8,1.66026744]
[1770026165747,1.13174337,2296.7,2295.8,1.66026744]
[1770026165951,1.13174337,2296.5,2295.9,0.913]
[1770026166122,1.13174337,2296.7,2295.9,2.00188597]
[1770026166324,1.13174337,2296.7,2295.9,2.00189737]
[1770026166655,1.53544503,2297.4,2296.0,13.92132147]
[1770026167151,2.19236114,2297.6,2296.1,0.913]
[1770026167152,1.53544503,2297.1,2296.1,0.913]
[1770026167320,1.53544503,2297.0,2296.1,0.913]
[1770026167520,0.01046915,2296.9,2296.1,0.913]
[1770026168065,0.01046915,2296.9,2296.2,1.5413]
[1770026168720,1.53544503,2297.3,2296.2,1.08872154]
[1770026168954,1.53654503,2297.6,2296.2,1.08872154]
[1770026169260,1.53544503,2297.5,2296.3,14.5]
[1770026169423,1.53654503,2297.6,2296.3,14.5]
[1770026169623,1.53544503,2297.2,2296.4,2.363]
[1770026169842,1.53544503,2297.2,2296.4,0.913]
[1770026170460,1.53544503,2297.1,2295.7,14.5]
[1770026170647,1.53544503,2297.1,2295.8,0.913]
[1770026170849,1.53544503,2297.1,2295.9,1.08888551]
[1770026171158,1.53544503,2297.0,2295.9,1.08888551]
[1770026171349,1.53544503,2297.0,2296.0,0.63576542]
[1770026171663,1.53544503,2297.0,2296.0,1.08884606]
[1770026171840,1.53544503,2297.0,2295.8,0.913]
[1770026172040,1.53544503,2297.0,2295.9,1.08888958]
[1770026172358,1.53544503,2296.8,2295.8,15.28656556]
[1770026172558,0.0011,2297.6,2296.1,13.3325863]
[1770026172856,0.0011,2297.6,2296.2,14.5]
[1770026173663,0.0011,2297.6,2296.2,27.78465602]
[1770026173830,0.0011,2297.6,2296.3,13.28465602]
[1770026174234,0.0011,2297.6,2296.4,1.08866051]
[1770026174432,0.0011,2297.6,2296.5,16.37279586]
[1770026174739,0.0011,2297.6,2296.6,0.913]
[1770026176877,13.09031912,2297.3,2294.6,3.72775682]
[1770026177158,0.0011,2297.6,2294.8,1.08941955]
[1770026177159,0.04793028,2296.2,2294.8,1.08941955]
[1770026177365,0.129,2297.0,2294.8,1.08941955]
[1770026177366,13.09031912,2296.9,2294.8,38.49127345]
[1770026177532,0.93692767,2296.8,2294.8,28.87407557]
[1770026177727,0.93692767,2296.7,2294.8,28.87407557]
[1770026177956,0.93692767,2296.6,2294.9,3.46465295]
[1770026178262,13.09031912,2296.9,2295.0,0.913]
[1770026178465,0.93684255,2296.8,2295.0,0.913]
[1770026178665,0.93684255,2296.7,2296.1,0.001]
[1770026178837,0.93682637,2296.6,2296.1,0.001]
[1770026179169,13.1382494,2296.8,2296.1,0.001]
[1770026179375,13.09031912,2296.6,2294.9,3.46465295]
[1770026179549,13.09031912,2296.4,2294.9,0.001]
[1770026179863,14.02692225,2296.3,2294.9,0.001]
[1770026180045,0.93660313,2296.2,2294.9,0.001]
[1770026180246,0.93660313,2296.1,2294.9,0.001]
[1770026180445,0.93660313,2296.0,2294.9,0.001]
[1770026180649,1.32672494,2296.8,2294.9,0.001]
[1770026180964,0.93602764,2296.7,2294.9,1.09037208]
[1770026181171,0.93602764,2296.6,2294.9,1.09037208]
[1770026181335,13.09031912,2296.9,2295.0,14.5]
[1770026181661,0.93560359,2296.8,2295.0,14.5]
[1770026181840,13.09031912,2296.9,2295.0,14.5]
[1770026181841,0.93560359,2296.7,2295.0,14.5]
[1770026182039,0.93560359,2296.6,2295.1,1.55903721]
[1770026183082,0.129,2297.0,2295.8,9.61719788]
[1770026183254,0.129,2297.0,2295.9,0.913]
[1770026183575,0.0011,2297.8,2296.0,14.5]
[1770026184582,0.0011,2297.8,2296.4,13.28465602]
[1770026184744,0.0011,2297.8,2296.5,2.29018539]
[1770026185071,0.0011,2297.8,2296.7,1.0885183]
[1770026187410,0.0011,2298.6,2297.4,9.61719788]
[1770026187579,16.02303705,2299.7,2297.4,9.61719788]
[1770026187580,13.09031912,2299.7,2297.5,14.2455863]
[1770026187780,1.30903191,2299.6,2297.6,16.88627842]
[1770026188614,14.39935103,2299.6,2297.6,16.88627842]
[1770026189117,14.39935103,2299.6,2297.7,0.913]
[1770026189297,14.39935103,2299.6,2297.7,2.00102473]
[1770026189677,14.39935103,2299.6,2297.7,0.913]
[1770026189881,13.09031912,2299.4,2297.7,2.00104217]
[1770026190205,13.09031912,2299.4,2297.7,0.913]
[1770026190783,13.09031912,2299.4,2297.7,2.00102713]
[1770026191518,13.09141912,2299.4,2297.7,2.00102713]
[1770026192016,0.0011,2299.4,2297.7,2.00102713]
[1770026192311,0.0011,2299.4,2297.8,0.63532054]
[1770026193245,0.0011,2299.4,2297.9,22.9018539]
[1770026193527,0.0011,2299.4,2298.0,14.37255854]
[1770026193686,13.09031912,2300.4,2298.4,22.9018539]
[1770026193891,13.09031912,2300.4,2298.5,0.913]
[1770026194094,1.30903191,2300.3,2298.6,2.38148539]
[1770026194398,1.30903191,2300.3,2298.7,0.913]
[1770026194399,14.39935103,2300.3,2298.7,0.913]
[1770026196924,14.39935103,2300.3,2298.7,2.00057057]
[1770026197228,14.39935103,2300.3,2298.7,0.913]
[1770026198219,14.39855103,2300.3,2298.7,2.00057028]
[1770026198422,1.4398551,2300.2,2298.8,0.63508552]
[1770026199709,1.4398551,2300.2,2298.8,1.72258604]
[1770026200104,1.4398551,2300.2,2298.8,1.72259519]
[1770026201297,0.913,2300.7,2298.8,1.72259519]
[1770026201611,0.913,2300.7,2298.8,15.33133484]
[1770026201818,13.57488371,2300.8,2299.1,13.60873965]
[1770026202010,0.0011,2300.8,2299.1,13.60873965]
[1770026203195,0.0011,2300.8,2298.9,13.60873965]
[1770026203896,0.0011,2300.8,2299.0,1.08742931]
[1770026204125,0.0011,2300.8,2299.1,2.11462165]
[1770026204505,0.0011,2300.8,2299.2,0.912]
[1770026204506,13.57488371,2300.6,2299.2,0.912]
[1770026204702,0.0011,2300.1,2299.2,0.912]
[1770026207849,13.57488371,2300.1,2299.2,0.912]
[1770026208203,0.0011,2300.1,2299.2,0.912]
[1770026208633,0.0011,2300.1,2299.2,1.99930758]
[1770026208805,0.0011,2300.6,2299.3,0.85834039]
[1770026209003,0.0011,2300.6,2299.2,14.67042672]
[1770026209004,0.0011,2300.6,2299.4,1.55287671]
[1770026209935,0.0011,2300.6,2299.4,0.912]
[1770026211402,0.0011,2300.6,2298.7,8.93790647]
[1770026211403,0.912,2299.4,2295.9,3.69474022]
[1770026211606,0.912,2299.4,2295.0,0.001]
[1770026211607,0.14379083,2296.6,2295.0,0.001]
[1770026211807,6.7502682,2296.5,2295.4,12.67111914]
[1770026212063,0.14379083,2296.6,2295.4,12.67111914]
[1770026212205,0.14379083,2296.6,2295.5,5.20103235]
[1770026212402,0.03919946,2296.2,2295.5,0.09586056]
[1770026212606,0.03919946,2295.9,2295.2,12.67111914]
[1770026212843,0.03919946,2295.8,2295.3,1.36297247]
[1770026213208,0.03919946,2296.2,2295.3,1.36297247]
[1770026213408,0.03919946,2295.8,2295.3,1.36297247]
[1770026213810,0.03919946,2295.8,2295.3,0.09586056]
[1770026214012,0.92855727,2295.7,2294.7,28.08311914]
[1770026214328,0.03919946,2295.8,2295.0,0.09586056]
[1770026214511,0.92712116,2295.7,2295.0,0.09586056]
[1770026214713,0.03919946,2295.8,2295.0,0.09586056]
[1770026214908,0.92711387,2295.7,2295.0,0.09586056]
[1770026215113,0.03919946,2295.0,2294.4,0.001]
[1770026215366,1.54701566,2295.5,2294.4,0.001]
[1770026215517,0.96461792,2295.4,2294.4,0.001]
[1770026215719,1.58621512,2295.9,2294.4,0.001]
[1770026215924,0.92532517,2295.8,2294.4,0.001]
[1770026216135,0.92532517,2295.7,2294.4,0.001]
[1770026216331,0.03919946,2295.5,2294.4,0.001]
[1770026217945,0.03919946,2295.5,2294.6,0.001]
[1770026218253,0.03919946,2295.5,2293.4,0.001]
[1770026218254,12.60756324,2294.9,2293.4,0.001]
[1770026218547,0.95261233,2294.8,2293.4,0.001]
[1770026218746,0.92211058,2294.7,2293.4,0.001]
[1770026219052,0.03050175,2295.3,2293.4,0.914]
[1770026219053,1.54701566,2295.3,2293.4,0.914]
[1770026219352,1.54701566,2295.6,2293.4,0.914]
[1770026219554,0.9489282,2295.5,2293.4,13.58511914]
[1770026219756,0.91842645,2295.4,2293.5,2.91752475]
[1770026219920,0.03050175,2295.5,2293.5,2.91752475]
[1770026220118,0.03050175,2295.5,2293.4,13.58511914]
[1770026220119,12.60756324,2295.1,2293.4,0.001]
[1770026220320,1.54701566,2295.5,2293.4,0.001]
[1770026220548,0.91805238,2295.4,2293.4,0.001]
[1770026220743,0.91805238,2295.3,2293.4,0.001]
[1770026220952,0.91805238,2295.2,2293.4,0.001]
[1770026221252,0.03050175,2295.4,2293.4,0.0002]
[1770026221552,0.9163024,2295.3,2293.4,0.0002]
[1770026221727,1.54701566,2295.9,2293.4,12.67131914]
[1770026222050,0.91608859,2295.8,2293.6,12.67111914]
[1770026222244,0.91608859,2295.8,2293.5,1.26713191]
[1770026222245,1.27345543,2295.9,2293.8,12.67111914]
[1770026222651,0.00961885,2295.8,2293.8,12.67111914]
[1770026222950,0.0401206,2295.8,2293.8,12.67111914]
[1770026223129,0.0401206,2295.8,2293.9,14.02953105]
[1770026223456,0.0401206,2295.8,2294.0,27.17111914]
[1770026223754,0.00961885,2295.8,2294.1,12.67111914]
[1770026224131,0.00961885,2295.8,2294.6,12.67111914]
[1770026224448,0.00961885,2295.8,2294.7,30.31528335]
[1770026225529,0.00961885,2295.8,2294.8,12.67111914]
[1770026225850,0.0011,2296.4,2295.1,12.67111914]
[1770026226228,0.0011,2296.4,2295.3,12.67111914]
[1770026226556,12.60756324,2295.6,2293.1,0.001]
[1770026226721,12.60756324,2295.6,2293.2,12.67111914]
[1770026226921,12.60756324,2295.6,2293.4,13.76138012]
[1770026227124,0.03050175,2295.4,2293.4,13.76137055]
[1770026227347,0.03050175,2295.4,2293.5,13.58411914]
[1770026227552,0.03050175,2295.0,2293.6,1.46743706]
[1770026227750,0.03050175,2295.0,2293.5,0.913]
[1770026228452,0.03050175,2294.7,2293.5,0.913]
[1770026228651,0.03050175,2295.4,2293.5,14.6161313]
[1770026228862,1.14081036,2296.0,2293.5,14.6161313]
[1770026229167,0.03050175,2295.4,2293.8,13.7031313]
[1770026229455,0.03050175,2295.4,2293.9,16.03749672]
[1770026230248,0.0011,2295.4,2294.1,13.7031313]
[1770026230751,0.03050175,2296.8,2294.3,13.7031313]
[1770026230943,0.03050175,2296.2,2294.4,14.6161313]
[1770026231321,0.03050175,2296.2,2294.5,14.6161313]
[1770026231517,0.03050175,2296.2,2294.6,1.46161313]
[1770026231960,0.03050175,2296.2,2294.6,13.7031313]
[1770026232453,0.03050175,2296.7,2294.7,1.08946703]
[1770026232665,0.03050175,2296.7,2294.0,6.47964018]
[1770026232666,13.17093358,2296.6,2294.1,0.03050175]
[1770026232819,13.17093358,2296.6,2293.1,0.001]
[1770026232820,13.16983358,2295.9,2293.7,5.27262182]
[1770026233018,13.16983358,2295.9,2294.0,1.08977901]
[1770026233019,1.34748511,2295.8,2294.0,1.08977901]
[1770026233252,1.34748511,2295.8,2294.0,1.08977176]
[1770026233450,0.03160175,2296.6,2294.6,13.7031313]
[1770026233788,0.03050175,2295.3,2293.8,0.52736218]
[1770026233925,13.16983358,2295.9,2293.6,13.7041313]
[1770026233926,0.03050175,2295.5,2293.6,13.7041313]
[1770026234325,0.03050175,2295.5,2293.7,1.08994201]
[1770026234525,0.03050175,2295.5,2293.8,1.91539142]
[1770026236270,0.91889157,2295.4,2293.8,1.91539142]
[1770026236432,0.03050175,2295.5,2293.8,1.91539142]
[1770026236632,0.91889187,2295.4,2293.8,1.91539142]
[1770026236845,0.03050175,2295.5,2293.8,1.91539142]
[1770026237043,0.91889236,2295.4,2293.8,1.91539142]
[1770026237250,0.92038093,2295.3,2293.9,0.914]
[1770026237448,0.03050175,2295.5,2293.9,1.19693914]
[1770026237651,0.92037852,2295.4,2293.9,1.19693914]
[1770026237844,0.03050175,2295.5,2293.9,0.914]
[1770026237845,0.92037852,2295.3,2293.9,0.914]
[1770026238065,0.92037852,2295.2,2293.9,0.914]
[1770026238370,0.92037852,2295.1,2293.9,0.914]
[1770026238533,0.92037852,2295.0,2293.9,0.914]
[1770026238735,1.14297078,2295.2,2293.9,0.914]
[1770026238970,0.92225256,2295.1,2293.9,0.914]
[1770026239158,0.92225256,2295.0,2293.9,0.914]
[1770026239358,0.92225256,2294.9,2293.9,0.914]
[1770026239669,0.92225256,2294.8,2293.9,0.914]
[1770026239841,1.14297078,2295.0,2293.9,0.914]
[1770026240045,0.92552086,2294.9,2293.6,0.001]
[1770026240283,0.92552086,2294.8,2293.7,0.914]
[1770026240437,2.06849164,2294.7,2293.7,0.914]
[1770026240632,0.92552086,2294.6,2293.7,0.914]
[1770026240936,0.92552086,2294.5,2293.7,0.914]
[1770026241243,0.45465296,2294.1,2293.6,0.001]
[1770026241446,0.92552086,2294.0,2293.6,0.001]
[1770026241777,0.92552086,2293.9,2293.6,0.001]
[1770026241934,0.92552086,2293.8,2293.6,0.001]
[1770026242136,0.92552086,2293.7,2293.6,0.001]
[1770026242547,0.92552086,2293.7,2293.4,0.0002]
[1770026242763,2.28098809,2294.3,2293.4,0.0002]
[1770026242939,3.44566048,2294.2,2293.4,0.0002]
[1770026243139,0.93657358,2294.1,2293.4,0.0002]
[1770026243347,0.93657358,2294.0,2293.4,0.0002]
[1770026243534,0.93657358,2293.9,2293.4,0.0002]
[1770026243768,0.93657358,2293.8,2293.4,0.0002]
[1770026243974,0.93657358,2293.7,2293.4,0.0002]
[1770026244180,0.93657358,2293.6,2293.4,0.0002]
[1770026244468,2.77e-06,2293.5,2293.4,0.0002]
[1770026244845,2.28098809,2294.3,2293.4,0.0002]
[1770026245047,2.5090869,2294.3,2293.4,0.0002]
[1770026245960,13.20033533,2294.7,2293.4,0.0002]
[1770026245961,2.28098809,2294.4,2293.4,0.0002]
[1770026246269,0.26899864,2295.0,2292.5,1.0912857]
[1770026246270,2.28098809,2293.9,2292.5,1.0912857]
[1770026246791,2.28098809,2293.9,2292.5,0.0008]
[1770026248600,2.28098809,2294.1,2292.6,2.38045125]
[1770026248807,2.28098809,2294.3,2292.7,0.67431111]
[1770026248985,0.03050175,2294.1,2292.7,0.67431111]
[1770026249485,0.03050175,2294.1,2292.7,14.37744241]
[1770026250366,2.31148984,2294.4,2292.7,14.37744241]
[1770026250561,2.31148984,2294.4,2292.8,1.09036985]
[1770026250806,2.54263882,2294.4,2292.9,1.54678123]
[1770026251169,0.03050175,2294.4,2292.9,1.54678123]
[1770026251396,0.26899864,2295.0,2292.9,1.54678123]
[1770026251397,0.03050175,2294.7,2293.3,13.7031313]
[1770026251592,0.03050175,2294.4,2293.4,14.6171313]
[1770026251914,0.03050175,2294.3,2293.4,14.6171313]
[1770026252602,0.03050175,2294.7,2293.5,1.09003706]
[1770026252767,0.03050175,2294.7,2293.6,2.00673166]
[1770026253596,0.03050175,2295.0,2293.6,15.70986296]
[1770026254287,0.03050175,2295.3,2293.6,15.70986296]
[1770026254487,0.03050175,2295.5,2293.9,13.7031313]
[1770026254685,0.03050175,2295.5,2294.1,13.7031313]
[1770026254886,0.0011,2294.5,2294.2,2.39329308]
[1770026255077,0.03050175,2295.5,2294.2,2.39329308]
[1770026255282,0.03050175,2295.2,2294.2,2.39329308]
[1770026255498,0.0011,2294.7,2294.3,0.914]
[1770026255703,0.03050175,2295.2,2294.3,0.914]
[1770026255906,0.03050175,2295.2,2294.3,2.52364244]
[1770026256482,0.93561579,2295.1,2294.3,2.52364244]
[1770026256794,0.03050175,2295.2,2294.3,2.52364244]
[1770026257376,0.03050175,2295.2,2294.3,16.22677374]
[1770026257799,0.03050175,2295.5,2294.4,13.80488848]
[1770026257974,0.0011,2295.6,2294.3,3.61328543]
[1770026257975,0.0011,2295.6,2294.6,13.80488848]
[1770026258169,0.0003,2295.6,2294.6,13.80488848]
[1770026258900,0.0003,2295.6,2294.7,1.08946703]
[1770026259403,0.0003,2295.6,2294.8,13.80488848]
[1770026260702,0.0003,2295.6,2294.9,0.914]
[1770026261003,0.03050175,2295.5,2294.9,0.914]
[1770026261199,0.03050175,2295.2,2295.0,0.914]
[1770026261382,0.03050175,2295.2,2295.0,0.68298083]
[1770026261578,0.03050175,2295.5,2295.0,0.68298083]
[1770026261786,0.93444478,2295.4,2295.0,0.68298083]
[1770026261988,0.0003,2295.6,2295.0,0.68298083]
[1770026262182,0.93435643,2295.5,2295.0,0.68298083]
[1770026262502,0.93465214,2295.4,2295.0,0.68298083]
[1770026262683,0.0003,2295.6,2295.0,0.67802825]
[1770026263008,0.93464343,2295.5,2295.0,0.67802825]
[1770026263302,0.03050175,2295.4,2295.0,0.67802825]
[1770026264105,0.03050175,2295.4,2295.1,0.914]
[1770026264483,0.03050175,2295.4,2295.1,0.23851772]
[1770026264892,0.0003,2295.6,2295.1,0.11225942]
[1770026265087,0.93446503,2295.5,2295.1,0.11225942]
[1770026265403,0.93446503,2295.4,2295.1,0.11225942]
[1770026265578,0.0003,2295.6,2295.1,0.11225942]
[1770026265776,0.93438181,2295.5,2295.1,0.11225942]
[1770026266014,13.4200554,2295.3,2293.6,2.00673166]
[1770026266194,2.36982553,2295.2,2293.7,0.914]
[1770026266511,0.93438181,2295.1,2293.7,0.914]
[1770026266718,0.93438181,2295.0,2293.7,0.914]
[1770026266911,0.93438181,2294.9,2293.7,0.914]
[1770026267102,0.93438181,2294.8,2293.7,0.914]
[1770026267305,1.2559188,2294.7,2293.7,0.914]
[1770026267616,0.93438181,2294.6,2293.7,0.914]
[1770026267782,0.93438181,2294.5,2293.7,0.914]
[1770026267983,0.93438181,2294.4,2293.7,0.914]
[1770026268187,2.28098809,2295.0,2293.7,0.914]
[1770026268399,0.93468344,2294.9,2293.7,0.914]
[1770026268604,2.59825613,2294.8,2294.3,0.001]
[1770026268806,0.93468344,2294.7,2294.3,0.001]
[1770026269004,0.93468344,2294.6,2294.3,0.001]
[1770026269190,0.93468344,2294.5,2294.3,0.001]
[1770026269391,1.66357269,2294.8,2294.3,0.001]
[1770026269613,0.93459552,2294.7,2294.3,0.001]
[1770026269915,1.19441234,2294.6,2294.3,0.001]
[1770026270224,0.0011,2295.2,2294.3,0.001]
[1770026270395,0.9344313,2295.1,2294.3,0.001]
[1770026270729,0.9344313,2295.0,2294.3,0.001]
[1770026270884,0.0011,2295.2,2294.3,0.001]
[1770026271090,13.4180754,2294.8,2293.3,0.001]
[1770026271289,2.5043392,2294.7,2293.3,0.001]
[1770026271600,0.93443285,2294.6,2293.3,0.001]
[1770026273619,1.56990635,2294.7,2293.3,13.60270729]
[1770026273791,1.5576123,2295.1,2293.3,13.60270729]
[1770026274114,0.93427933,2295.0,2293.3,13.60270729]
[1770026274317,0.93427933,2294.9,2293.3,13.60270729]
[1770026274517,0.93427933,2294.8,2293.3,13.60270729]
[1770026274715,0.93427933,2294.7,2293.4,1.36027073]
[1770026274902,14.9756877,2295.1,2293.4,1.36027073]
[1770026275199,0.93440198,2295.0,2293.4,1.36027073]
[1770026275514,2.49201428,2294.9,2293.5,0.914]
[1770026275720,0.93440198,2294.8,2293.5,0.914]
[1770026277196,0.93440198,2294.7,2293.5,0.914]
[1770026277403,0.93440198,2294.6,2293.5,0.914]
[1770026277602,0.93440198,2294.5,2293.3,0.001]
[1770026277910,0.93440198,2294.4,2293.3,0.915]
[1770026278100,0.93440198,2294.3,2293.3,0.915]
[1770026278300,0.93440198,2294.2,2293.3,0.915]
[1770026278501,0.93440198,2294.1,2293.3,0.915]
[1770026278719,1.5576123,2294.5,2293.3,0.915]
[1770026278920,0.93516854,2294.4,2293.3,0.915]
[1770026279128,0.93516854,2294.3,2293.3,0.915]
[1770026279292,0.93516854,2294.2,2293.3,0.915]
[1770026279495,0.93516024,2294.1,2293.3,0.915]
[1770026279818,1.5576123,2294.6,2293.3,0.915]
[1770026280003,2.66080814,2294.5,2293.3,0.915]
[1770026280206,0.93514056,2294.4,2293.3,0.915]
[1770026280420,0.93514056,2294.3,2293.3,0.915]
[1770026280610,1.5576123,2294.7,2293.3,0.915]
[1770026280813,0.93521015,2294.6,2293.5,0.001]
[1770026281120,0.0011,2294.4,2293.5,0.0002]
[1770026281529,0.0011,2294.4,2293.5,13.60190729]
[1770026282624,0.0011,2294.6,2293.5,13.60190729]
[1770026283129,0.0011,2294.6,2293.3,2.0051291]
[1770026283130,13.4180754,2294.4,2293.3,0.0002]
[1770026283312,14.9746977,2294.0,2293.3,0.0002]
[1770026283511,1.5576123,2293.8,2293.3,0.0002]
[1770026283723,0.93507607,2293.7,2293.3,0.0002]
[1770026284037,14.9746977,2294.0,2293.3,0.0002]
[1770026284038,0.93507607,2293.6,2293.3,0.0002]
[1770026284195,1.5576123,2294.2,2293.3,0.0002]
[1770026284393,0.93456067,2294.1,2293.3,0.0002]
[1770026284598,1.5576123,2295.1,2293.3,13.60190729]
[1770026284828,1.5587123,2295.2,2293.3,13.60190729]
[1770026285007,0.0011,2295.2,2293.3,13.60190729]
[1770026285726,0.0011,2295.2,2293.5,13.60170729]
[1770026285901,0.0011,2295.2,2293.7,13.60170729]
[1770026288008,0.0011,2295.2,2293.8,12.67633351]
[1770026288210,0.0011,2295.2,2293.9,1.26763335]
[1770026289919,0.0011,2295.2,2293.8,12.67633351]
[1770026290125,0.0011,2295.2,2293.9,0.914]
[1770026290708,0.0011,2295.2,2294.0,12.67633351]
[1770026291132,0.93663295,2295.1,2294.0,12.67633351]
[1770026291326,0.0011,2295.2,2294.0,12.67633351]
[1770026291636,0.0011,2295.2,2294.1,1.35903335]
[1770026291832,0.93667022,2295.1,2294.1,1.35903335]
[1770026292027,0.0011,2295.2,2294.1,1.35903335]
[1770026292837,0.0011,2295.2,2294.0,1.08978769]
[1770026292838,0.9368922,2295.1,2294.0,1.08978769]
[1770026293033,0.0011,2295.2,2294.2,0.914]
[1770026293217,0.93720201,2295.1,2294.2,0.914]
[1770026293407,0.0011,2295.2,2294.2,0.914]
[1770026293804,0.0011,2295.2,2294.2,2.27303335]
[1770026294007,0.0011,2294.4,2294.2,2.27303335]
[1770026294204,0.0011,2294.6,2294.2,2.27303335]
[1770026294621,0.0011,2295.2,2294.2,2.27303335]
[1770026295030,0.93740982,2295.1,2294.2,2.27303335]
[1770026295227,0.0011,2295.2,2294.3,1.49493669]
[1770026295541,0.93763561,2295.1,2294.3,1.49493669]
[1770026295837,0.93767565,2295.0,2294.4,0.914]
[1770026296015,0.0011,2295.2,2294.4,0.914]
[1770026296333,0.93763609,2295.1,2294.4,0.914]
[1770026296637,0.93763609,2295.0,2294.4,0.914]
[1770026296836,0.0011,2295.2,2294.4,0.914]
[1770026297043,0.9375758,2295.1,2294.4,0.914]
[1770026297244,0.0011,2295.2,2294.4,0.914]
[1770026297408,0.93745928,2295.1,2294.4,0.914]
[1770026297614,0.0011,2295.2,2294.4,0.914]
[1770026297811,0.93745468,2295.1,2294.4,0.914]
[1770026298116,0.0011,2295.2,2294.0,12.67633351]
[1770026298313,0.0011,2295.2,2294.1,2.29061559]
[1770026298853,0.0011,2295.2,2294.1,13.59033351]
[1770026299727,0.0011,2295.2,2294.1,14.68005171]
[1770026299910,0.0011,2295.2,2294.1,13.59033351]
[1770026303223,0.0003,2295.2,2294.1,14.68007406]
[1770026303948,0.0003,2295.2,2294.1,13.59033351]
[1770026304170,0.0003,2295.2,2294.1,15.05834616]
[1770026304749,0.0003,2295.2,2294.1,16.14809649]
[1770026305125,0.0003,2295.2,2294.1,15.05834616]
[1770026306021,0.0003,2295.2,2294.3,0.001]
[1770026306722,0.0011,2295.0,2294.3,0.001]
[1770026306926,0.0011,2295.7,2294.4,12.67633351]
[1770026307125,0.0011,2295.7,2294.6,1.08951451]
[1770026308126,0.0011,2295.7,2294.6,13.76584802]
[1770026309857,0.0011,2295.7,2294.9,12.67633351]
[1770026310065,0.0011,2295.7,2294.7,0.914]
[1770026310231,0.0011,2295.7,2294.8,0.914]
[1770026310422,0.0011,2295.7,2294.5,14.92398786]
[1770026310639,0.0011,2295.7,2294.6,3.49590854]
[1770026310841,0.0011,2295.7,2294.6,3.4959084]
[1770026311354,0.0011,2295.7,2294.6,1.49239879]
[1770026311556,0.0011,2295.7,2294.7,0.914]
[1770026311758,14.14194177,2295.6,2294.8,0.914]
[1770026311960,0.0011,2295.7,2294.8,0.914]
[1770026312256,0.0011,2295.7,2294.9,0.914]
[1770026315143,0.93888398,2295.6,2294.9,0.914]
[1770026315462,0.0011,2295.7,2294.9,0.914]
[1770026315761,14.14432402,2295.6,2295.0,0.914]
[1770026316065,2.35342693,2295.5,2295.0,0.69874406]
[1770026316265,0.93888453,2295.4,2295.0,0.69874406]
[1770026316970,0.93888453,2295.3,2295.0,0.59186489]
[1770026317170,0.93888453,2295.3,2295.1,0.914]
[1770026318373,15.59444642,2295.2,2294.3,0.001]
[1770026318530,13.09695959,2295.0,2294.0,0.001]
[1770026318734,0.93888453,2294.9,2294.0,0.001]
[1770026318951,0.93888453,2294.8,2294.0,0.001]
[1770026319147,0.93888453,2294.7,2294.0,0.001]
[1770026319347,0.93888453,2294.6,2294.0,0.001]
[1770026319561,13.09695959,2294.9,2294.0,0.001]
[1770026319859,2.4056601,2294.8,2294.0,0.001]
[1770026320054,0.93937244,2294.7,2294.0,0.001]
[1770026320255,0.93937244,2294.6,2294.0,0.001]
[1770026320461,1.46628766,2294.8,2294.0,0.001]
[1770026320680,0.93921474,2294.7,2294.0,0.001]
[1770026320963,0.93921474,2294.6,2294.0,0.001]
[1770026321367,3.12536166,2295.1,2294.0,0.001]
[1770026321543,0.93887793,2295.0,2294.0,0.001]
[1770026321745,0.93887793,2294.9,2294.0,13.81789647]
[1770026321944,0.0011,2295.2,2294.0,13.81789647]
[1770026322177,0.93874091,2295.1,2294.1,2.56209491]
[1770026322475,0.0011,2295.2,2294.1,2.56209491]
[1770026322642,0.93868639,2295.1,2294.1,2.56209491]
[1770026322975,0.0011,2295.2,2294.1,2.56209491]
[1770026325078,0.93875041,2295.1,2294.1,2.56209491]
[1770026325254,0.93875041,2295.0,2294.2,0.914]
[1770026325454,0.93875041,2294.9,2294.2,0.914]
[1770026325654,0.93875041,2294.8,2294.2,0.914]
[1770026325855,0.93887585,2294.7,2294.2,0.914]
[1770026326054,0.93890256,2294.6,2294.2,0.79375518]
[1770026326257,14.66287661,2295.0,2294.2,0.79375518]
[1770026326459,15.61102424,2294.9,2294.2,0.79375518]
[1770026326673,13.91663777,2294.8,2294.2,0.79375518]
[1770026326875,0.93872055,2294.7,2294.0,0.001]
[1770026327075,13.91663777,2294.6,2294.1,0.914]
[1770026327284,1.56591702,2294.9,2293.5,0.001]